Cogmind - Beta 17.1 *** ADVENTURER MODE // 2026.08.27 @ 20:57:18 Player: lqndo Result: Destroyed by UD-95A(x) with Makeshift Spear Performance ------------- Evolutions (0) 0 Regions Visited (3) 600 Robots Destroyed (18) 90 Value Destroyed (373) 373 Prototype IDs (1) 20 Alien Tech Used (0) 0 Bonus (5800) 5800 TOTAL SCORE: 6883 Bonus ------- Prayed to X0-1V1 5000 Major X0-1V1 Interference 500 Registered with UFD 300 Cogmind --------- Core Integrity 0/250 Matter 300/300 Energy 100/100 System Corruption 0% Temperature Cool (0) Movement Core (50) Location -8/Scraptown Parts ------- > --- POWER (1) -------- (None) > --- PROPULSION (2) --- (None) > --- UTILITY (2) ------ (None) > --- WEAPON (4) ------- (None) > --- INVENTORY (5) ---- Damper Plating Light EM Pulse Cannon Peak State ------------ > --- POWER ------------ Ion Engine > --- PROPULSION ------- Light Treads Light Treads > --- UTILITY ---------- Large Storage Unit X0-1V1's Piety Tracker > --- WEAPON ----------- Beam Rifle Light EM Pulse Cannon > --- INVENTORY -------- Light Ion Engine Light Ion Engine Light Treads Improved Heat Sink Medium Matter Pod Damper Plating EM Pulse Gun EM Pulse Gun Light EM Pulse Cannon Shotgun Shotgun Mining Laser [Rating: 25] Favorites ----------- Power Ion Engine Engine Ion Engine Propulsion Light Treads Treads Light Treads Leg Aluminum Leg Utility Large Storage Unit Device X0-1V1's Piety Tracker Storage Large Storage Unit Protection Core Shielding Weapon Light Assault Rifle Energy Gun EM Pulse Gun Energy Cannon Light EM Pulse Cannon Ballistic Gun Light Assault Rifle Build | -11 -10 -10 -8 ------- Run | Yrd Mat Sub Scr Slots Evolved . | . . . . Power . | . . . . Propulsion . | . . . . Utility . | . . . . Weapon . | . . . . Parts Attached 16 | 6 6 3 1 Power 3 | 1 2 . . Engine 3 | 1 2 . . Core . | . . . . Reactor . | . . . . Propulsion 4 | 2 . 2 . Treads 2 | . . 2 . Leg 2 | 2 . . . Wheel . | . . . . Hover . | . . . . Flight . | . . . . Utility 5 | 1 4 . . Device 2 | . 2 . . Storage 2 | 1 1 . . Processor . | . . . . Hackware . | . . . . Protection 1 | . 1 . . Artifact . | . . . . Weapon 4 | 2 . 1 1 Energy Gun 2 | 1 . . 1 Energy Cannon 1 | . . 1 . Ballistic Gun 1 | 1 . . . Ballistic Cannon . | . . . . Launcher . | . . . . Special Weapon . | . . . . Impact Weapon . | . . . . Slashing Weapon . | . . . . Piercing Weapon . | . . . . Special Melee Weapon . | . . . . Unidentified Prototypes 1 | . 1 . . Parts Lost 5 | . . 2 3 Power . | . . . . Propulsion 2 | . . 1 1 Utility 1 | . . . 1 Weapon 2 | . . 1 1 Highest Loss Streak 3 | . . 2 3 To Critical Strikes . | . . . . Average Backups 12 | 1 11 14 14 Power 2 | . 2 3 2 Propulsion 1 | 1 2 2 . Utility 4 | . 3 3 5 Weapon 4 | . 3 5 5 Tool/Special . | . . . . Unused Backups 20 | . 3 . 17 Power 3 | . 1 . 2 Propulsion 1 | . . . 1 Utility 8 | . 2 . 6 Weapon 8 | . . . 8 Tool/Special . | . . . . Average Slot Usage (%) 98 | . 99 97 98 Engine 13 | . 14 14 13 Treads 15 | . . 5 27 Leg 12 | . 28 20 . Device 12 | . 10 14 13 Storage 13 | . 14 14 13 Protection 1 | . 3 . . Energy Gun 12 | . 14 9 11 Energy Cannon 7 | . . 3 13 Ballistic Gun 7 | . 14 14 2 Peak Build Rating 25 | 6 20 21 25 Average Rating 16 | 4 8 20 22 On Entrance 11 | . 6 20 21 Avg Prop Armor Cover (%) . | . . . . Naked Turns 13 | . . . 13 Heaviest Build 33 | 11 29 31 33 Greatest Support 40 | 20 20 40 40 Greatest Overweight (x) 3 | 3 2 3 . Average Overweight (x) . | . . . . Largest Inventory Capacity 15 | 8 15 15 15 Average Capacity 14 | 7 14 15 14 Most Carried 15 | 4 15 15 15 Average Carried 13 | 1 11 14 14 Final Capacity 15 | 8 15 15 5 Final Carried 15 | 4 15 13 5 Class Distribution -------------------- 100% | Mutant Dominant Class ---------------- Mutant | -10/Materials Mutant | -10/Subcaves Mutant | -8/Scraptown Resources | -11 -10 -10 -8 ----------- Run | Yrd Mat Sub Scr Matter Collected 609 | 173 261 128 47 Remotely . | . . . . Salvage Created 485 | . 275 140 70 Parts 45 | . 31 9 5 Haulers Intercepted . | . . . . Recyclers Shooed 1 | . 1 . . Parts Field Recycled . | . . . . Retrieved Matter . | . . . . Parts Self-Destructed 7 | . . 7 . Prevented 4 | . . 4 . Parts Restored . | . . . . Kills | -11 -10 -10 -8 ------- Run | Yrd Mat Sub Scr Combat Hostiles Destroyed 16 | . 11 4 1 Guns 14 | . 11 3 . Cannons 1 | . . 1 . Classes Destroyed 4 | . 3 . 1 Watcher 2 | . 2 . . Swarmer 11 | . 9 2 . Grunt 4 | . 2 2 . Scrapper 1 | . . . 1 Best Kill Streak 5 | . 5 2 1 Combat Bots Only 5 | . 5 2 1 Max Kills in Single Turn 1 | . 1 1 1 Gunslinging . | . . . . Exploded . | . . . . Melee . | . . . . Uniques/NPCs Destroyed . | . . . . Combat | -11 -10 -10 -8 -------- Run | Yrd Mat Sub Scr Hostile Shots Fired 105 | . 33 27 45 Missed 33 | . 9 8 16 Hits 72 | . 24 19 29 Melee 7 | . . . 7 Projectile 65 | . 24 19 22 Critical Strikes 2 | . . . 2 Damage Taken 895 | . 165 172 558 Core 265 | . 21 24 220 Absorbed by Shields 32 | . 32 . . Redirected to Shielding 2 | . 2 . . Ignored by Resistances 267 | . 62 52 153 Core Remaining (%) 100 | 100 . . . Volleys Fired 52 | . 30 19 3 Largest 2 | . 2 2 2 Hottest 112 | . 60 76 112 Shots Fired 96 | . 60 30 6 Gun 91 | . 60 28 3 Cannon 5 | . . 2 3 Launcher . | . . . . Special . | . . . . Kinetic 49 | . 30 19 . Thermal 3 | . . . 3 Explosive . | . . . . Electromagnetic 44 | . 30 11 3 Robot Hit Streak 13 | . 8 10 13 Robot Miss Streak 4 | . 2 4 . Penetration Max . | . . . . Secondary Targets 3 | . 3 . . Max Gunslinging Chain 1 | . 1 . . Shots Hit Robots 61 | . 36 21 4 Core Hits 29 | . 20 8 1 Critical Kills . | . . . . Critical Parts Destroyed . | . . . . Critical Strikes 1 | . 1 . . Corrupt 1 | . 1 . . Melee Attacks . | . . . . Impact . | . . . . Slashing . | . . . . Piercing . | . . . . Sneak Attacks . | . . . . Combat Hostiles . | . . . . Follow-up Attacks . | . . . . Damage Inflicted 831 | . 525 237 69 Guns 612 | . 392 190 30 Cannons 83 | . . 47 36 Explosions 133 | . 133 . . Melee . | . . . . Ramming 3 | . . . 3 Kinetic 224 | . 121 103 . Thermal 163 | . 133 . 30 Explosive . | . . . . Electromagnetic 441 | . 271 134 36 Impact . | . . . . Slashing . | . . . . Piercing . | . . . . Highest Corruption . | . . . . Average Corruption . | . . . . Corruption Purged . | . . . . Corruption Blocked . | . . . . Overload Shots . | . . . . Overflow Damage . | . . . . Projectiles . | . . . . Explosions . | . . . . Melee . | . . . . Knockbacks . | . . . . Impact . | . . . . Kinetic . | . . . . Secondary . | . . . . Self-Inflicted Damage 31 | . 30 . 1 Shots 2 | . 2 . . Rammed 2 | . . . 2 Targets Rammed 2 | . . . 2 Kicked . | . . . . Crushed . | . . . . Highest Temperature 120 | . 78 4 120 Average Temperature 29 | . 24 4 50 Received Heat Transfer 214 | . 36 87 91 Siege Activations . | . . . . Martial Activations . | . . . . Shielding Activations . | . . . . Robots Disrupted . | . . . . Combat Hostiles . | . . . . Robots Corrupted . | . . . . Combat Hostiles . | . . . . Parts Fried . | . . . . Impact Corruptions . | . . . . Robots Melted . | . . . . Combat Hostiles . | . . . . Parts Melted . | . . . . Heat Transferred 312 | . 250 . 62 Parts Sabotaged . | . . . . Parts Stolen . | . . . . Parts Stripped . | . . . . Power Chain Reactions 2 | . 2 . . Alert | -11 -10 -10 -8 ------- Run | Yrd Mat Sub Scr Maximum Alert Level . | . . . . Low Security (%) 100 | 100 100 . . Level 1 . | . . . . Level 2 . | . . . . Level 3 . | . . . . Level 4 . | . . . . Level 5 . | . . . . High Security . | . . . . Max Security . | . . . . Peak Influence 134 | . 134 . . Initial . | . . . . Average 26 | . 28 . . Influence Increases 447 | . 327 120 . Destroy 0b10 Robot/C 300 | . 220 80 . Destroy 0b10 Robot/NC 10 | . 10 . . Destroy Leader 54 | . 44 10 . Successful Hack 4 | . 4 . . Disable Machine 18 | . 18 . . Destroy Structure 1 | . 1 . . Lose Combat Pursuer 60 | . 30 30 . Influence Decreases 447 | . 283 124 40 Entered New Map 65 | . . 25 40 Time Decay 362 | . 283 79 . Lost Part 20 | . . 20 . Squads Dispatched 1 | . 1 . . Investigation 1 | . 1 . . Extermination . | . . . . Reinforcement . | . . . . Assault . | . . . . Garrison . | . . . . Intercept . | . . . . Searches Triggered . | . . . . Construction Impeded . | . . . . Haulers Reinforced . | . . . . Active Scanning Responses . | . . . . Cargo Convoy Interrupts . | . . . . Stealth | -11 -10 -10 -8 --------- Run | Yrd Mat Sub Scr Distress Signals 3 | . 3 . . Communications Jammed . | . . . . Distress Signals . | . . . . Times Spotted 49 | . 19 4 26 Peak Tracking Total 16 | . 5 6 16 Tactical Retreats 6 | . 2 1 3 Traps | -11 -10 -10 -8 ------- Run | Yrd Mat Sub Scr Traps Triggered 1 | . 1 . . Indirectly . | . . . . Trap Hack Attempts . | . . . . Triggered . | . . . . Disarmed . | . . . . Reprogrammed . | . . . . Reused . | . . . . Traps Extracted . | . . . . Installed . | . . . . Triggered . | . . . . Machines | -11 -10 -10 -8 ---------- Run | Yrd Mat Sub Scr Machines Disabled 3 | . 2 . 1 Max in Single Turn 1 | . 1 . 1 Machines Repaired . | . . . . Machines Dismantled . | . . . . Machines Sabotaged . | . . . . Overloaded Fab Kills . | . . . . Hacking | -11 -10 -10 -8 --------- Run | Yrd Mat Sub Scr Machines Accessed 9 | . 5 . 4 Terminals 4 | . 4 . . Fabricators . | . . . . Repair Stations . | . . . . Recycling Units 1 | . 1 . . Scanalyzers . | . . . . Garrison Access . | . . . . Total Hacks 43 | . 14 . 29 Successful 34 | . 5 . 29 Failed 9 | . 9 . . Catastrophic . | . . . . Database Lockouts . | . . . . Manual 12 | . 12 . . Terminals 11 | . 11 . . Fabricators . | . . . . Repair Stations . | . . . . Recycling Units 3 | . 3 . . Scanalyzers . | . . . . Garrison Access . | . . . . Terminal Hacks 30 | . 1 . 29 Record 22 | . . . 22 Robot Analysis 7 | . . . 7 Recall Investigation 1 | . 1 . . Fabricator Hacks . | . . . . Repair Station Hacks . | . . . . Recycling Unit Hacks 2 | . 2 . . Report Inventory 1 | . 1 . . Retrieve Components 1 | . 1 . . Scanalyzer . | . . . . Garrison Access Hacks . | . . . . Unauthorized Hacks 2 | . 2 . . Terminals 2 | . 2 . . Botnet 2 | . 2 . . Fabricators . | . . . . Repair Stations . | . . . . Recycling Units . | . . . . Scanalyzers . | . . . . Garrison Access . | . . . . Data Cores Recovered . | . . . . Used . | . . . . Hacking Detections 5 | . 5 . . Full Trace Events . | . . . . Feedback Events . | . . . . Feedback Blocked . | . . . . Robot Schematics Acquired . | . . . . Robots Built . | . . . . Authchips . | . . . . Time . | . . . . Total Robot Build Rating . | . . . . Part Schematics Acquired . | . . . . Parts Built . | . . . . Authchips . | . . . . Time . | . . . . Total Part Build Rating . | . . . . Part Studies Acquired . | . . . . Parts Repaired . | . . . . Time . | . . . . Parts Recycled . | . . . . Recycled Matter . | . . . . Retrieved Matter . | . . . . Retrieved Components 2 | . 2 . . Parts Scanalyzed . | . . . . Part Schematics Acquired . | . . . . Parts Damaged . | . . . . Bothacking | -11 -10 -10 -8 ------------ Run | Yrd Mat Sub Scr Used RIF Installer . | . . . . Robots Hacked . | . . . . Non-combat . | . . . . Combat . | . . . . Robot Hacks Applied . | . . . . Relay Couplers Released . | . . . . Fabnet Peak Effective % . | . . . . Robots Rewired . | . . . . Allies Hacked . | . . . . Hacks Repelled . | . . . . Allies | -11 -10 -10 -8 -------- Run | Yrd Mat Sub Scr Total Allies 2 | . . . 2 Largest Group 2 | . . . 2 Highest-Rated Group 20 | . . . 20 Highest-Rated Ally 10 | . . . 10 Total Orders . | . . . . Ally Attacks 2 | . . . 2 Total Damage 54 | . . . 54 Kills 1 | . . . 1 Allies Corrupted . | . . . . Allies Melted 1 | . . . 1 X0-1V1 Amusement Gains 107 | . 9 . 98 Average Entertainment 50 | . 9 4 99 Good Acts 7 | . . . 7 Bad Acts 1 | . 1 . . Intel | -11 -10 -10 -8 ------- Run | Yrd Mat Sub Scr Active Infowar (turns) . | . . . . Robot Analysis Total 7 | . . . 7 Derelict Logs Recovered . | . . . . Drone Launches . | . . . . Drone Recoveries . | . . . . Exploration | -11 -10 -10 -8 ------------- Run | Yrd Mat Sub Scr Turns Passed 2757 | 69 1018 256 1414 Spaces Moved 1535 | 49 492 113 881 Core 38 | 16 . . 22 Treads 893 | . . 34 859 Legs 604 | 33 492 79 . Wheels . | . . . . Hover . | . . . . Flight . | . . . . Fastest Speed 50 | 50 120 160 50 Average Speed 165 | 115 182 182 157 Slowest Speed 330 | 200 260 330 160 Overloaded Moves . | . . . . Propulsion Burnouts . | . . . . Robots Hopped . | . . . . Potential Cave-ins . | . . . . Cave-ins Triggered . | . . . . Exploration Rate (%) 36 | 3 72 8 61 Regions Visited 3 Branch Regions 2 Pre-discovered Areas . | . . . . Known Exits Taken . | . . . . Unknown Exits Taken 3 | 1 1 1 . Scrap Searched 1 | . . . 1 Spaces Dug . | . . . . Terrain Destroyed 1 | . 1 . . Melee . | . . . . Projectile . | . . . . AOE 1 | . 1 . . Terrain Rammed . | . . . . Walls Destroyed . | . . . . Machines Disabled . | . . . . Actions | -11 -10 -10 -8 --------- Run | Yrd Mat Sub Scr Total 1663 | 58 561 138 906 Wait 21 | . 12 . 9 Move 1532 | 48 491 112 881 Hop . | . . . . Pick Up 22 | 4 13 1 4 Fast Attach 12 | 6 4 1 1 Attach 3 | . . 3 . Detach . | . . . . Swap 3 | . 3 . . Drop 16 | . 8 2 6 Fire 52 | . 30 19 3 Melee . | . . . . Ram 2 | . . . 2 Kick . | . . . . Crush . | . . . . Escape Stasis . | . . . . Rewire . | . . . . Trap . | . . . . Miscellaneous . | . . . . Route ------- -11/Scrapyard -10/Materials (discovered 5 exits: [*Mat x2] / [*Min x2] / [*Sub]) -10/Subcaves -8/Scraptown (discovered 1 exit: [*Fac]) History --------- Turn | Location | Event 13 | -11/Scrapyard | Discovered new exit (range 15) 70 | -11/Scrapyard | Entered Materials 259 | -10/Materials | Discovered new exit (range 11) 299 | -10/Materials | Discovered new exit (range 12) 314 | -10/Materials | Build established: Mutant 631 | -10/Materials | Discovered new exit (range 13) 980 | -10/Materials | Discovered new exit (range 12) 1046 | -10/Materials | Discovered new exit (range 7) 1076 | -10/Materials | Prayed at D.C.S.S. Altar Unit 1088 | -10/Materials | Entered Subcaves 1089 | -10/Subcaves | Approached by a straggling Scientist 1212 | -10/Subcaves | Scientist uncovered a shortcut to Scraptown 1215 | -10/Subcaves | A swath of the cavern ceiling suddenly collapsed 1344 | -10/Subcaves | Entered Scraptown 1680 | -8/Scraptown | Discovered new exit (range 5) 1745 | -8/Scraptown | Visited Spacefarers 1809 | -8/Scraptown | Visited Junk Repository 1945 | -8/Scraptown | Visited Cyclists 2336 | -8/Scraptown | Visited UFD Registry 2339 | -8/Scraptown | Registered with UFD as "Pipeform" 2416 | -8/Scraptown | Visited Scrap Suit Storage 2489 | -8/Scraptown | Visited Curators Association 2540 | -8/Scraptown | Attacked by Scraptown defenders 2552 | -8/Scraptown | Found Damper Plating 2560 | -8/Scraptown | X0-1V1 sent allied B-36 Bruiser (x2) 2603 | -8/Scraptown | Visited Analyses Database 2721 | -8/Scraptown | Core integrity fell below 50% 2735 | -8/Scraptown | Core integrity fell below 20% 2745 | -8/Scraptown | Released all parts (4) 2750 | -8/Scraptown | Weapon slot count temporarily expanded by X0-1V1 (+2) 2758 | -8/Scraptown | Destroyed by UD-95A(x) with Makeshift Spear Last Messages --------------- 02726_ X0-1V1 makes it rain matter. 02729_ Bolt penetrates Supplies. 02731_ Penetrated by Bolt. 02731_ Bolt penetrates Supplies. 02734_ Penetrated by Bolt. 02742_ Critical hit (Burn: +50). 02744_ Penetrated by Bolt. 02745_ Lgt. Treads destroyed. 02745_ LJ-FHE(r) follow-up attacks with Ripteeth. 02745_ Released Beam Rifle. 02745_ Released Ion Engine. 02745_ Released X0-1V1's Piety Tracker. 02745_ Released Lgt. Treads. 02750_ X0-1V1: "Weapons, camera, action!" (+2 weapon slots) 02756_ Slammed into 8G-AVS(x). 02757_ Slammed into UD-95A(x). 02758_ X0-1V1 laughs nastily! [Achievement: This Is Interesting...] Map ----- +----------------------------------------------------+ | | | | | | | #""""#" | | #????#" | | #????#"""""" """"""""""" """"""""""" | | ######## ####????####### ########### ########### | | ???????# #??????????# ##" "#?# | | ??????# #??????????## ####""] ""##?# | | #?????# #??????????#" !"#?# !! "!#??#""" | | #?????# #??????????#"! !"###""! ""##?#"" | | [#?????# #??????????#"! "##" "#?#"" | | ##?????# #??????????#"! !"###"" % ""##?#""" | | ???????# #??????????#" !"#?#!" "&#??#### | | ???????# #??????????## X####?#"" ""#?????? | | ???????# #??????????#" "#???#" """ "#????? | | ???????# #??????????#"! "???#### "&" ####????? | | ???????# #??????????#######?????]#"###"#???????? | | ######## #???????????????????????###?###???????? | | """""""" #????################################## | | "" """"" #????# ##"""##"""##"""##"""##"" | | " " "" #????# """"""" ##=""##|""##" "##"""##"" | | #????# """"""" % %[% % =*[[[ % | | "" "" " #????# """""""% %* % !![* | | """""""" #????# """""""%h % % %*!|% % | | """""""" #????# """""""@##"""##"""##""|##"|"##!! | | ######## #????# rxx##"""##"""##"""##"""##"" | | ######## #????###########???????????############ | | """""""# #?????????????????????????????????????? | | ] ]]] "# #?????????????????????????????????????? | | /!/! "# #?????????????????????????????????????? | | "# #?????????????????????????????????????? | | """""""# #?????????????????????????????????????? | | #?????????????????????????????????????? | | #?????????????????????????????????????? | | """ """#####?????????????????????????????????????? | | "" "#?????????????????????????????????????????? | | "" "#?????????????????????????????????????????? | | " "#?????????????????????????????????????????? | | "#?????????????????????????????????????????? | | """""""#?????????????????????????????????????????? | | ########?????????????????????????????????????????? | | | | | | | | | | | | | | | | | +----------------------------------------------------+ Best States ------------- Heat Dissipation 25 Energy Generation 10 Energy Capacity 250 Matter Stores 300 Matter Capacity 300 Sight Range 16 Terrain Scan Density 10 Resistance: KI 20 Resistance: TH 20 Resistance: EX 20 Resistance: EM 20 Resistance: I 20 Resistance: S 20 Resistance: P 20 Core Shielding 20 Evasion (%) 55 Recoil Reduction 2 Offensive Hacking 10 Item Schematics ----------------- None Robot Schematics ------------------ None Fabricated ------------ Nothing Repaired ---------- Nothing Studied --------- None Alien Tech Used ----------------- None Achievements -------------- This Is Interesting... Challenges ------------ None Game ------ Seed VoltaicRefineryStorage Manual? 0 Play Time 00:23:34 Cumulative 47.8 hours Start 2026.08.26 @ 20:20:09 End 2026.08.27 @ 20:57:18 Sessions 5 Manual Loads 0 Difficulty Adventurer Special Mode None Game No. 22 Rogue 0 Adventurer 22 Explorer 0 Win Type - Total 1 Types 1/0/0/0/0/0/0/0/0/0 Lore% 27 Gallery% 31 Achievement% 31 Wizard Run 0 Options --------- Layout 1 ASCII 0 Keyboard 0 Movement Arrows Keybinds 0 Fullscreen 1 Font 24/Terminus Map View 50x35 Zoom Use 0% Tactical HUD 1 Map Filters NONE Filters NONE Steam 1 RUN: 75f93ab4-9aa2-4426-ba8b-482c8342ef56